[Event "3rd President Cup-A 2024"]
[Site "Tashkent"]
[Date "2024.11.29"]
[Round "9.18"]
[White "Timoshin, Maxim"]
[Black "Zemlyanskii, Ivan"]
[Result "1/2-1/2"]
[ECO "E68"]
[WhiteElo "2361"]
[BlackElo "2543"]
[Annotator "TA"]
[PlyCount "254"]
[EventDate "2024.11.22"]
[EventType "swiss"]
[EventCountry "UZB"]
[SourceTitle "playchess.com"]
[Source "ChessBase"]
[SourceQuality "1"]
[TimeControl "5400+30"]

{[%evp 25,254,40,46,26,28,23,53,37,56,56,52,47,47,43,68,20,10,0,0,0,0,-22,-31,-38,-30,-50,-35,-41,-35,-52,-31,-35,-52,-52,-70,-60,-62,-84,-59,-74,-87,-65,-76,-223,-211,-180,-110,-125,-8,-8,-8,-8,-8,-8,8,8,8,8,8,8,13,27,21,18,118,102,125,122,202,199,381,362,364,384,354,379,447,437,682,653,1752,1499,1396,1237,1035,817,769,755,750,695,639,630,672,621,566,438,432,379,438,415,550,295,295,295,295,295,290,288,282,89,243,241,584,259,233,245,468,75,94,159,159,68,68,68,68,66,68,0,68,68,68,68,68,68,68,68,68,68,68,68,68,60,60,60,60,56,56,56,60,56,56,53,53,53,53,53,53,53,53,53,53,53,53,53,53,53,53,53,53,53,53,53,53,53,53,53,53,53,53,0,0,0,0,0,0,0,0,0,0,0,0,0,0,0,0,0,8,0,0,0,0,0,0,0,0,0,0,0,0,0,0,0,0,0,0,0,0,0,0,0,0,0,8,8,8,8,8,0,0,0,0]} 1. d4 {[%emt 0:02:48]} Nf6 {[%emt 0:00:15]} 2. c4 {[%emt 0:00:08]} g6 {[%emt 0:00:03]} 3. g3 {[%emt 0:00:22]} Bg7 {[%emt 0:00:23]} 4. Bg2 {[%emt 0:00:06]} O-O {[%emt 0:00:23]} 5. Nc3 {[%emt 0:00:13]} d6 {[%emt 0:00:11]} 6. Nf3 {[%emt 0:00:05]} Nbd7 {[%emt 0:00:30]} 7. O-O {[%emt 0:00:32]} e5 {[%emt 0:00:05]} 8. e4 {[%emt 0:00:43]} exd4 {[%emt 0:00:51]} 9. Nxd4 {[%emt 0:00:05]} Re8 {[%emt 0:00:04]} 10. h3 {[%emt 0:03:02]} Nc5 {[%emt 0:01:38]} 11. Re1 {[%emt 0:00:05]} Bd7 {[%emt 0:00:24]} 12. Rb1 {[%emt 0:04:52]} a5 {[%emt 0:03:52]} 13. b3 {[%emt 0:05:07]} h6 {[%emt 0:10:56][%cal Bh7h6,Bh6h5,Bh5h4][%mdl 32]} 14. Kh2 {[%emt 0:04:40]} h5 {[%emt 0:08:41]} 15. f3 {[%emt 0:05:00]} h4 {[%emt 0:04:13] [#] And now ...hxg3+ would win.} 16. g4 {[%emt 0:00:05] White is slightly better.} g5 {[%emt 0:00:03]} 17. Be3 {[%emt 0:09:39][%cal Oh2g1]} (17. Bxg5 $2 Nxg4+ 18. fxg4 Qxg5 $19) 17... Nh7 {[%emt 0:02:51]} 18. Qd2 {[%emt 0:00:18]} Be5+ {[%emt 0:01:55]} 19. Kg1 {[%emt 0:00:04]} Nf8 {[%emt 0:09:52]} 20. Rbd1 {[%emt 0:02:16]} (20. Bxg5 $2 Bxd4+ 21. Be3 Bxe3+ 22. Qxe3 Bc6 $19) (20. Nde2 $14 Nce6 21. f4 gxf4 22. Nxf4) 20... Nce6 $11 {[%emt 0:05:39]} 21. Nce2 {[%emt 0:14:22]} Qf6 {[%emt 0:04:57]} 22. Rf1 {[%emt 0:02:49]} Nxd4 {[%emt 0:02:41]} 23. Bxd4 {[%emt 0:00:21]} Bxd4+ {[%emt 0:05:29]} 24. Qxd4 {[%emt 0:00:08]} Qxd4+ {[%emt 0:01:20]} 25. Nxd4 {[%emt 0:01:11]} a4 {[%emt 0:01:33]} 26. b4 {[%emt 0:01:24]} Ng6 {[%emt 0:01:15]} 27. Rf2 {[%emt 0:02:41]} Ne5 {[%emt 0:02:05][%cal Oc7c5]} 28. Bf1 {[%emt 0:00:10]} a3 {[%emt 0:01:51]} 29. Kg2 {[%emt 0:05:25]} Ra4 {[%emt 0:04:20]} 30. Rb1 {[%emt 0:00:44]} c5 {[%emt 0:03:15]} 31. Nc2 {[%emt 0:01:02]} Be6 {[%emt 0:01:21]} 32. bxc5 {[%emt 0:01:28]} dxc5 {[%emt 0:01:23]} (32... Bxc4 33. Bxc4 Nxc4 34. cxd6 $11) 33. Rxb7 {[%emt 0:01:15]} Bxc4 {[%emt 0:04:16]} (33... Nxc4 34. Rc7 $11) 34. Ne3 {[%emt 0:07:54]} (34. Bxc4 $17 {is a better defense.} Rxc4 (34... Nxc4 35. Rb5 $15) 35. Nxa3) 34... Bxf1+ {[%emt 0:01:07]} 35. Rxf1 {[%emt 0:00:26] [#]} Rd4 {[%emt 0:05:34]} (35... Rb4 $1 $19 {[%cal Rb4b7]} 36. Rxb4 cxb4) 36. Nd5 {[%emt 0:05:39] Black must now prevent Nf6+.} Ra8 {[%emt 0:03:00]} (36... Rd8 $17 {...c4 would now be deadly.} 37. Rb3 Ra8) 37. f4 $1 {[%emt 0:01:53]} gxf4 {[%emt 0:00:53]} 38. Rxf4 {[%emt 0:00:05]} Rd2+ {[%emt 0:01:31]} 39. Rf2 {[%emt 0:00:40]} Rxf2+ {[%emt 0:01:22]} 40. Kxf2 {[%emt 0:00:01][%mdl 4096] Endgame. KRN-KRN} Ra4 {[%emt 0:01:09]} 41. Ke3 {[%emt 0:00:49]} Kg7 {[%emt 0:00:33]} 42. Kf4 {[%emt 0:02:47]} Ng6+ {[%emt 0:01:10]} 43. Kf5 {[%emt 0:03:09]} Rd4 {[%emt 0:00:59]} 44. Rb3 {[%emt 0:00:07] Prevents Rd3} c4 {[%emt 0:02:20]} (44... Kh6 $11 {keeps the balance.}) 45. Rxa3 $16 {[%emt 0:00:38]} Rd2 {[%emt 0:00:23]} 46. Kg5 {[%emt 0:00:46]} Nf8 {[%emt 0:02:21]} (46... Re2 $16 {was worth a try.}) 47. Ne3 $18 {[%emt 0:02:32]} Kg8 $2 {[%emt 0:01:28]} (47... Ne6+ {was necessary.} 48. Kxh4 c3) 48. Nxc4 {[%emt 0:02:28]} (48. Kxh4 c3 $18) 48... Rd4 {[%emt 0:00:09]} 49. Ne3 {[%emt 0:00:09]} Rxe4 {[%emt 0:00:14]} 50. Nf5 {[%emt 0:00:10] Prevents Re7.} (50. Kxh4 Kh7 51. Kg5 Re6 $16) 50... Re8 {[%emt 0:02:05]} 51. Ra7 {[%emt 0:00:28]} (51. Nxh4 Ne6+ 52. Kh6 Nc7 $18) 51... Nh7+ {[%emt 0:00:30]} (51... Ne6+ $142 52. Kf6 (52. Kxh4 Rf8 $18) 52... Rf8) 52. Kxh4 {[%emt 0:00:11]} Re6 {[%emt 0:00:18]} 53. Ra8+ {[%emt 0:00:17]} Nf8 {[%emt 0:00:01]} 54. Kg5 {[%emt 0:00:50]} Rb6 {[%emt 0:00:30]} 55. h4 {[%emt 0:00:59]} f6+ {[%emt 0:00:18]} 56. Kh5 {[%emt 0:00:47]} Kf7 {[%emt 0:00:29]} 57. Ra7+ {[%emt 0:00:18]} Ke6 {[%emt 0:01:07]} 58. Re7+ {[%emt 0:00:54]} Kd5 {[%emt 0:00:01]} 59. Ng7 {[%emt 0:02:06]} Rb5 {[%emt 0:00:58]} 60. Rf7 {[%emt 0:01:25]} Nd7 {[%emt 0:00:29]} 61. Nf5 {[%emt 0:01:06]} (61. Rxd7+ Kc6+ 62. Kg6 Kxd7 $18) 61... Kc6 {[%emt 0:00:12]} 62. Re7 {[%emt 0:02:30]} Ra5 {[%emt 0:00:44]} 63. Re6+ {[%emt 0:01:00]} Kc7 {[%emt 0:00:29]} 64. Re2 {[%emt 0:00:20]} Ne5 {[%emt 0:00:47]} 65. Rf2 {[%emt 0:03:45]} Kd7 {[%emt 0:00:39]} 66. g5 {[%emt 0:00:25]} fxg5 {[%emt 0:00:17]} 67. Kxg5 $2 {[%emt 0:00:09]} (67. hxg5 $18 {Threatens to win with g6.} Ra6 68. Nh4) 67... Ra8 $2 {[%emt 0:00:39]} (67... Ke8 $16) 68. Re2 {[%emt 0:00:58]} Ke6 $2 {[%emt 0:00:34]} (68... Rg8+ 69. Kf4 Nd3+ 70. Kf3 Rf8) 69. Nh6 {[%emt 0:01:14]} (69. Kf4 $142) 69... Kd5 {[%emt 0:00:25]} 70. h5 {[%emt 0:00:15]} Nf3+ $2 {[%emt 0:00:27]} (70... Rf8 71. Rb2 Ra8 72. Rb5+ Ke6) 71. Kf6 $2 {[%emt 0:00:53]} (71. Kf4 $18 {is the precise move to win.} Nd4 72. Re5+ Kc6 73. Ng4) 71... Ra6+ $16 {[%emt 0:00:37]} 72. Kg7 {[%emt 0:00:07]} Nd4 {[%emt 0:00:18]} 73. Rg2 {[%emt 0:00:44]} (73. Rf2 $16) 73... Ne6+ $14 {[%emt 0:00:29]} 74. Kf7 {[%emt 0:00:09] Hoping for Ng8.} Nf4 {[%emt 0:00:23][%csl LRg2,LRh5,LRh6]} 75. Rg5+ $1 {[%emt 0:00:31]} Ke4 {[%emt 0:00:14]} 76. Nf5 {[%emt 0:00:15]} (76. Ng8 $14 Nxh5 77. Rxh5 Rxa2 78. Rc5) 76... Nxh5 {[%emt 0:00:57]} 77. Rxh5 {[%emt 0:00:04]} Rxa2 $11 {[%emt 0:00:03] KRN-KR} 78. Ke6 {[%emt 0:00:09]} Ra8 {[%emt 0:00:15]} 79. Rh4+ {[%emt 0:00:06]} Kd3 {[%emt 0:00:03]} 80. Rd4+ {[%emt 0:00:36]} Kc3 {[%emt 0:00:05]} 81. Rd1 {[%emt 0:00:07]} Rh8 {[%emt 0:00:09]} 82. Kd5 {[%emt 0:00:16]} Rh5 {[%emt 0:00:14]} 83. Ke4 {[%emt 0:00:04]} Rh3 {[%emt 0:00:17]} 84. Rd8 {[%emt 0:00:05]} Rh5 {[%emt 0:00:11]} 85. Rc8+ {[%emt 0:00:12]} Kb4 {[%emt 0:00:05]} 86. Rc7 {[%emt 0:00:14]} Rg5 {[%emt 0:00:08]} 87. Ne3 {[%emt 0:00:07]} Rh5 {[%emt 0:00:09]} 88. Nc2+ {[%emt 0:00:19]} Kb5 {[%emt 0:00:04]} 89. Nd4+ {[%emt 0:00:14]} Kb4 {[%emt 0:00:03]} 90. Nf3 {[%emt 0:00:07]} Rh3 {[%emt 0:00:04]} 91. Nd2 {[%emt 0:00:23]} Kb5 {[%emt 0:00:11]} 92. Kd4 {[%emt 0:00:07]} Kb6 {[%emt 0:00:12]} 93. Rc1 {[%emt 0:00:06]} Rh4+ {[%emt 0:00:07]} 94. Ne4 {[%emt 0:00:05]} Rh5 {[%emt 0:00:01]} 95. Nf6 {[%emt 0:00:10]} Rh4+ {[%emt 0:00:11]} 96. Kd5 {[%emt 0:00:04]} Kb5 {[%emt 0:00:17]} 97. Rc8 {[%emt 0:00:14]} Kb4 {[%emt 0:00:15]} 98. Ne4 {[%emt 0:00:04]} Rh5+ {[%emt 0:00:05]} 99. Kd4 {[%emt 0:00:05]} Kb5 {[%emt 0:00:01]} 100. Nc3+ {[%emt 0:00:18]} Ka5 {[%emt 0:00:32]} 101. Rb8 {[%emt 0:00:11]} Ka6 {[%emt 0:00:21]} 102. Nd5 {[%emt 0:00:10]} ({White should try} 102. Ne2 $14) 102... Rh1 $1 {[%emt 0:00:07] The position is equal.} 103. Ne3 {[%emt 0:00:43]} Rc1 {[%emt 0:00:20]} 104. Kd5 {[%emt 0:00:15]} Rh1 {[%emt 0:00:12]} 105. Kc5 {[%emt 0:00:13]} Rc1+ {[%emt 0:00:11]} 106. Nc4 {[%emt 0:00:06]} Rh1 {[%emt 0:00:08]} 107. Rb6+ {[%emt 0:00:28]} Ka7 {[%emt 0:00:04]} 108. Rb4 {[%emt 0:00:13]} Rh5+ {[%emt 0:01:21]} 109. Kc6 {[%emt 0:00:08]} Rh4 {[%emt 0:01:00]} 110. Rb7+ {[%emt 0:00:34]} Ka6 {[%emt 0:00:00]} 111. Rb6+ {[%emt 0:00:08]} Ka7 {[%emt 0:00:01]} 112. Nd6 {[%emt 0:00:08] Threatening mate with Nb5+.} (112. Rb7+ Ka6 113. Rb6+ Ka7 $18) 112... Rh6 {[%emt 0:00:27]} 113. Rb1 {[%emt 0:00:26]} Re6 {[%emt 0:00:59]} 114. Ra1+ {[%emt 0:06:29]} Kb8 {[%emt 0:00:01]} 115. Ra6 {[%emt 0:00:11]} Rh6 {[%emt 0:00:56]} 116. Ra5 {[%emt 0:00:42]} Rg6 {[%emt 0:00:27]} 117. Rf5 {[%emt 0:01:08]} Rh6 {[%emt 0:00:19]} 118. Rg5 {[%emt 0:00:04]} Ka7 {[%emt 0:00:33]} 119. Rg8 {[%emt 0:00:16]} Re6 {[%emt 0:00:14]} 120. Rh8 {[%emt 0:01:06]} Rg6 {[%emt 0:00:10]} 121. Rh4 {[%emt 0:01:27]} Kb8 {[%emt 0:00:14]} 122. Rh7 {[%emt 0:01:41]} Rf6 {[%emt 0:00:13]} 123. Rd7 {[%emt 0:00:52] Kb6 would kill now.} Rh6 {[%emt 0:00:32]} 124. Kb6 {[%emt 0:00:21]} Rh8 {[%emt 0:00:02] Inhibits Rd8+.} 125. Nf7 {[%emt 0:01:13]} Rg8 {[%emt 0:06:49]} 126. Ne5 {[%emt 0:00:33] Inhibits Rg6+. Intending Nc6+ and mate.} Kc8 {[%emt 0:01:09]} 127. Ra7 {[%emt 0:00:09][%cal Ra7a8]} ({Less strong is} 127. Rc7+ Kd8) 127... Kd8 {[%emt 0:00:11] What a bad dream for Black.   Weighted Error Value: White=0.11 (very precise) /Black=0.28 (precise) .  Missed win:     	White=2     	---        Mistake:       	White=6     	Black=10     Inaccurate:     	White=1     	Black=3      OK:         	White=37    	Black=39     Best:        	White=3     	Black=11     Strong:       	White=2     	Black=1} 1/2-1/2

[Event "3rd President Cup-A 2024"]
[Site "Tashkent"]
[Date "2024.11.29"]
[Round "9.19"]
[White "Madaminov, Mukhiddin"]
[Black "Abdurakhmonov, Mukhammadali"]
[Result "1-0"]
[ECO "D35"]
[WhiteElo "2501"]
[BlackElo "2395"]
[Annotator "TA"]
[PlyCount "59"]
[EventDate "2024.11.22"]
[EventType "swiss"]
[EventCountry "UZB"]
[SourceTitle "playchess.com"]
[Source "ChessBase"]
[SourceQuality "1"]
[TimeControl "5400+30"]

{[%evp 18,59,28,29,33,25,34,0,0,-8,34,41,54,56,64,33,39,18,45,46,63,45,68,60,80,77,108,108,116,120,158,160,199,192,308,304,338,338,335,334,385,386,385,334]} 1. c4 {[%emt 0:00:38]} e6 {[%emt 0:01:02]} 2. Nc3 {[%emt 0:00:10]} d5 {[%emt 0:00:12]} 3. d4 {[%emt 0:00:16]} Nf6 {[%emt 0:00:14]} 4. cxd5 {[%emt 0:00:11]} exd5 {[%emt 0:00:04]} 5. Bg5 {[%emt 0:00:15]} c6 {[%emt 0:01:40]} 6. e3 {[%emt 0:00:51]} Bf5 {[%emt 0:01:30]} 7. Qf3 {[%emt 0:04:09]} Bg6 {[%emt 0:00:23]} 8. Bxf6 {[%emt 0:00:10]} Qxf6 {[%emt 0:00:05]} 9. Qxf6 {[%emt 0:00:08]} gxf6 {[%emt 0:00:04]} 10. h4 {[%emt 0:00:07]} h6 {[%emt 0:05:32]} 11. Rd1 {[%emt 0:02:57]} Rg8 {[%emt 0:00:06]} 12. Bd3 {[%emt 0:08:19]} Bxd3 {[%emt 0:05:40] The position is equal.} 13. Rxd3 {[%emt 0:02:34]} f5 {[%emt 0:00:22]} 14. Kf1 {[%emt 0:02:28]} Bd6 {[%emt 0:06:57]} 15. Rh3 {[%emt 0:04:28]} Ke7 {[%emt 0:00:09]} 16. Nce2 {[%emt 0:04:20]} Nd7 {[%emt 0:01:20]} 17. Rf3 {[%emt 0:02:25]} Ke6 {[%emt 0:00:07]} 18. Nh3 {[%emt 0:00:30][%cal Bg1h3,Bh3f4,Bf4h5,Bh5g3,Bg3f5][%mdl 32]} Rg4 {[%emt 0:05:53]} 19. Nhf4+ {[%emt 0:00:38]} Kf6 {[%emt 0:02:14]} 20. Nh5+ {[%emt 0:03:11] A dynamic duo of knights.} Ke6 {[%emt 0:06:05][%cal Od7b6]} 21. Nef4+ {[%emt 0:01:40]} Ke7 {[%emt 0:01:09][%cal Od7b6]} 22. Ng3 {[%emt 0:02:21]} Bxf4 {[%emt 0:00:51]} 23. Nxf5+ {[%emt 0:01:53]} Ke6 {[%emt 0:14:16]} 24. Rxf4 {[%emt 0:00:21]} h5 {[%emt 0:01:44]} 25. Ng3 {[%emt 0:04:31]} Rag8 {[%emt 0:03:26]} (25... Rxg3 $142 26. fxg3 f5) 26. Nxh5 $18 {[%emt 0:01:22]} Rxg2 {[%emt 0:00:06]} 27. Ng3 {[%emt 0:00:09]} R8xg3 {[%emt 0:00:06]} 28. fxg3 {[%emt 0:00:07]} Rxg3 {[%emt 0:00:41]} 29. Rb3 {[%emt 0:00:44]} b6 {[%emt 0:00:28]} 30. e4 {[%emt 0:00:13] Weighted Error Value: White=0.05 (flawless) /Black=0.23 (precise) .  Mistake:       	---       	Black=1      Inaccurate:     	White=2     	Black=4      OK:         	White=10    	Black=6      Best:        	White=1     	Black=1} 1-0

[Event "3rd President Cup-A 2024"]
[Site "Tashkent"]
[Date "2024.11.29"]
[Round "9.22"]
[White "Goltseva, Ekaterina"]
[Black "Harsh Suresh"]
[Result "0-1"]
[ECO "A84"]
[WhiteElo "2378"]
[BlackElo "2431"]
[Annotator "TA"]
[PlyCount "148"]
[EventDate "2024.11.22"]
[EventType "swiss"]
[EventCountry "UZB"]
[SourceTitle "playchess.com"]
[Source "ChessBase"]
[SourceQuality "1"]
[TimeControl "5400+30"]

{[%evp 43,148,-30,-22,-55,-63,-75,-55,-61,-63,-62,-35,-62,-35,-37,-29,-28,-33,-34,0,0,0,-17,-3,-92,-92,-81,-80,-131,-142,-122,-104,-139,-111,-114,-112,-114,-104,-108,-106,-195,0,0,0,0,0,0,0,0,0,0,0,0,0,0,0,0,0,-6545,0,-6495,-6448,-6331,-6207,-6284,-6116,-6421,-5189,-4400,-4478,-4304,-3747,-1768,-1795,-3304,-360,-6414,-2546,-29977,-29978,-29978,-29970,-29969,-29970,-29970,-29971,-29981,-29979,-29982,-29981,-29981,-29982,-29982,-29981,-29982,-29983,-29983,-29984,-29983,-29980,-29979,-29981,-29983,-29983,-29990,-29991,-29991,-29990]} 1. d4 {[%emt 0:00:06]} d5 {[%emt 0:01:28]} 2. c4 {[%emt 0:00:05]} e6 {[%emt 0:00:10]} 3. Nc3 {[%emt 0:00:05]} c6 {[%emt 0:00:08]} 4. e3 {[%emt 0:05:15]} f5 {[%emt 0:00:20]} 5. Nf3 {[%emt 0:02:15]} Bd6 {[%emt 0:00:30]} 6. Bd3 {[%emt 0:01:08]} Nh6 {[%emt 0:01:02]} 7. Qc2 {[%emt 0:04:18]} Nd7 {[%emt 0:00:12]} 8. Bd2 {[%emt 0:10:55]} Nf6 {[%emt 0:07:32]} 9. O-O-O {[%emt 0:03:43]} Bd7 {[%emt 0:03:50]} 10. h3 {[%emt 0:04:03]} Qe7 {[%emt 0:12:59]} 11. g4 {[%emt 0:08:08]} fxg4 {[%emt 0:14:02]} 12. Ne5 {[%emt 0:00:37]} O-O-O {[%emt 0:14:12]} 13. e4 {[%emt 0:21:23]} dxe4 {[%emt 0:08:55]} 14. Nxe4 {[%emt 0:00:06]} Nxe4 {[%emt 0:01:31]} 15. Bxe4 {[%emt 0:00:05]} gxh3 {[%emt 0:04:38]} 16. Rxh3 {[%emt 0:19:13]} Nf5 {[%emt 0:05:48]} 17. Nxd7 {[%emt 0:03:04]} Rxd7 {[%emt 0:00:22]} 18. Bc3 {[%emt 0:04:36]} Kb8 {[%emt 0:06:25]} 19. d5 {[%emt 0:00:40]} cxd5 {[%emt 0:00:43]} 20. cxd5 {[%emt 0:00:25]} Rc8 {[%emt 0:00:59]} 21. Rhd3 {[%emt 0:04:51]} Qg5+ {[%emt 0:07:11]} 22. Kb1 {[%emt 0:00:10]} e5 {[%emt 0:00:18]} 23. Qb3 {[%emt 0:05:47]} g6 {[%emt 0:02:06]} 24. a3 {[%emt 0:00:20]} Qf4 {[%emt 0:01:28]} 25. f3 {[%emt 0:00:31]} Ng3 {[%emt 0:00:25]} 26. Bd2 {[%emt 0:00:28]} Qf6 {[%emt 0:01:00]} 27. Qa4 {[%emt 0:00:30]} Rdc7 {[%emt 0:01:55]} 28. Be3 {[%emt 0:00:05]} b6 {[%emt 0:00:54]} 29. Rb3 {[%emt 0:00:11]} Nxe4 {[%emt 0:00:54]} 30. fxe4 {[%emt 0:01:48]} Qe7 {[%emt 0:01:47]} (30... Kb7 {is interesting.} 31. Qb5 Qd8 32. Ka2 Qd7) 31. Qa6 {[%emt 0:00:21]} Rb7 $1 {[%emt 0:00:39]} 32. a4 {[%emt 0:00:35]} Bc5 {[%emt 0:01:04]} 33. a5 {[%emt 0:00:39]} (33. Bxc5 $11 {remains equal.} Rxc5 34. Qd3) 33... Bxe3 $17 {[%emt 0:00:49]} 34. Rxe3 {[%emt 0:00:02]} Qb4 {[%emt 0:00:21]} 35. d6 {[%emt 0:00:38]} (35. axb6 $142 Rxb6 36. Qa3) 35... bxa5 $17 {[%emt 0:00:17]} (35... Qxa5 36. Qxa5 bxa5 37. Rd5 $15) 36. Qe2 {[%emt 0:00:21]} Rd8 $1 {[%emt 0:00:40]} 37. Red3 {[%emt 0:00:35]} a4 {[%emt 0:00:16]} 38. Ka1 {[%emt 0:00:24]} a3 {[%emt 0:00:46]} 39. bxa3 {[%emt 0:00:21]} Qc5 {[%emt 0:00:03]} 40. Qa2 {[%emt 0:00:52]} a6 {[%emt 0:00:46]} 41. Rb1 {[%emt 0:00:40] [#]} (41. Qe6 $17) 41... Rxd6 $2 {[%emt 0:00:45]} (41... Rdd7 $1 $19 {[%cal Oh7h5] White must now prevent ...h5!.} 42. Qd2 Rxb1+ 43. Kxb1 h5) 42. Qg8+ $11 {[%emt 0:00:34]} Ka7 {[%emt 0:00:10]} 43. Rxb7+ {[%emt 0:00:25]} Kxb7 {[%emt 0:00:01]} 44. Rb3+ {[%emt 0:00:38]} Rb6 {[%emt 0:00:41]} 45. Qxh7+ {[%emt 0:00:12]} Qc7 {[%emt 0:00:32]} 46. Rxb6+ {[%emt 0:00:09]} Kxb6 {[%emt 0:00:01]} 47. Qxg6+ {[%emt 0:00:14]} Ka5 {[%emt 0:00:51]} 48. Qg2 {[%emt 0:01:05]} Qc1+ {[%emt 0:00:27]} 49. Ka2 {[%emt 0:00:03]} Ka4 {[%emt 0:01:05]} 50. Qf3 $2 {[%emt 0:01:17][%mdl 8192] [#]} (50. Qb2 $11 Qc4+ 51. Ka1) 50... Qc2+ $1 $19 {[%emt 0:00:13]} 51. Ka1 {[%emt 0:00:03]} Qb3 {[%emt 0:00:17]} 52. Qf6 {[%emt 0:00:29]} Qxa3+ {[%emt 0:00:22]} 53. Kb1 {[%emt 0:00:02]} Qd3+ {[%emt 0:00:22]} 54. Kc1 {[%emt 0:00:46]} Qc4+ {[%emt 0:00:39]} (54... Qxe4 55. Qxa6+ Kb4 (55... Kb3 56. Qd3+ Qxd3 $11) 56. Kd2 $11) 55. Kd2 {[%emt 0:01:08]} Qd4+ {[%emt 0:00:09]} (55... Qxe4 56. Qxa6+ Kb4 57. Qf1 $11) 56. Kc1 {[%emt 0:00:02]} Qc3+ {[%emt 0:01:26]} (56... Qxe4 57. Qxa6+ Kb4 (57... Kb3 58. Qd3+ Qxd3 $11) 58. Kd2 $11) 57. Kd1 {[%emt 0:00:14]} a5 {[%emt 0:00:20]} 58. Ke2 {[%emt 0:01:15]} Qc4+ $2 {[%emt 0:00:12]} (58... Kb3 {( -> ...a4)} 59. Qb6+ Qb4 60. Qe3+ Kb2) 59. Kd2 $2 {[%emt 0:00:32]} (59. Ke3 Qd4+ 60. Kf3) 59... Qd4+ $19 {[%emt 0:00:56]} 60. Kc1 {[%emt 0:00:04]} Kb3 {[%emt 0:00:17]} (60... Qxe4 $2 61. Qe6 $19) 61. Qe7 {[%emt 0:00:55]} Qc3+ {[%emt 0:00:35]} 62. Kd1 {[%emt 0:00:04]} Qc2+ {[%emt 0:00:02]} 63. Ke1 {[%emt 0:00:05]} Qxe4+ {[%emt 0:00:05]} 64. Kd1 {[%emt 0:00:08]} Qd5+ {[%emt 0:00:30]} 65. Kc1 {[%emt 0:00:04]} a4 {[%emt 0:00:16]} 66. Qh7 {[%emt 0:01:25]} Qc4+ {[%emt 0:00:37]} 67. Kd1 {[%emt 0:00:17]} e4 {[%emt 0:00:42]} 68. Qb7+ {[%emt 0:00:41]} Ka2 {[%emt 0:00:07]} 69. Qa7 {[%emt 0:00:19]} e3 {[%emt 0:00:49]} 70. Ke1 {[%emt 0:01:01]} Qb3 {[%emt 0:00:15]} ({And not} 70... Kb3 71. Qxe3+ Kb2 (71... Qc3+ 72. Kd1 $11) 72. Qb6+ Qb3 73. Qf2+ Kb1 74. Qc5 $11) 71. Ke2 {[%emt 0:00:32]} a3 {[%emt 0:00:11]} 72. Qc5 {[%emt 0:00:25]} Kb1 {[%emt 0:00:19]} 73. Ke1 {[%emt 0:00:44]} a2 {[%emt 0:01:02]} 74. Qf5+ {[%emt 0:00:26]} Kb2 {[%emt 0:00:02]} 0-1

[Event "3rd President Cup-A 2024"]
[Site "Tashkent"]
[Date "2024.11.29"]
[Round "9.23"]
[White "Chu, Wei Chao"]
[Black "Omonov, Asrorjon"]
[Result "0-1"]
[ECO "D02"]
[WhiteElo "2419"]
[BlackElo "2360"]
[Annotator "TA"]
[PlyCount "88"]
[EventDate "2024.11.22"]
[EventType "swiss"]
[EventCountry "UZB"]
[SourceTitle "playchess.com"]
[Source "ChessBase"]
[SourceQuality "1"]
[TimeControl "5400+30"]

{[%evp 11,88,-1,14,9,31,18,23,16,23,1,7,-53,-52,-138,-139,-140,-144,-168,-118,-222,-113,-183,-188,-179,-166,-184,-193,-239,-223,-227,-237,-236,-212,-243,-234,-271,-254,-274,-271,-324,-335,-320,-327,-308,-242,-457,-464,-455,-448,-582,-575,-545,-388,-396,-347,-534,-513,-899,-880,-1042,-1024,-1034,-994,-1025,-962,-2099,-2168,-2103,-1540,-2062,-1970,-1978,-1874,-1962,-1939,-29973,-29974,-29986,-29987]} 1. Nf3 {[%emt 0:00:04]} Nf6 {[%emt 0:00:20]} 2. d4 {[%emt 0:00:25]} d5 {[%emt 0:00:40]} 3. Bf4 {[%emt 0:04:55]} c5 {[%emt 0:00:13]} 4. e3 {[%emt 0:00:08]} Nc6 {[%emt 0:00:04]} 5. Nbd2 {[%emt 0:00:08]} e6 {[%emt 0:00:04]} 6. c3 {[%emt 0:01:04]} cxd4 {[%emt 0:00:05]} 7. exd4 {[%emt 0:00:06]} Nh5 {[%emt 0:00:03]} 8. Be3 {[%emt 0:00:21]} Bd6 {[%emt 0:00:57] [#]} 9. Ne5 $1 {[%emt 0:08:24]} g6 {[%emt 0:02:35]} 10. g4 {[%emt 0:05:24]} Ng7 {[%emt 0:02:20]} 11. Bh6 {[%emt 0:04:30]} (11. h4 $11) 11... O-O $1 $15 {[%emt 0:01:18]} 12. Ndf3 {[%emt 0:00:09]} (12. h4 $15) 12... f6 $17 {[%emt 0:00:39]} 13. Nxc6 {[%emt 0:11:38]} bxc6 {[%emt 0:00:05]} 14. Be2 {[%emt 0:01:00]} e5 {[%emt 0:01:45]} ({Black should try} 14... Rb8 $19 15. Qd2 e5 16. dxe5 fxe5) 15. Nd2 {[%emt 0:02:50]} (15. Qa4 $17 Bd7 (15... Bxg4 16. Qxc6 Be7 17. Rg1 $15) 16. dxe5 fxe5 17. O-O-O) 15... e4 {[%emt 0:04:07]} (15... exd4 $19 {White must now prevent ...Re8.} 16. cxd4 Qc7) 16. Nf1 {[%emt 0:02:23]} (16. Qa4 $17) 16... f5 $19 {[%emt 0:05:39]} 17. gxf5 {[%emt 0:03:18]} Rxf5 {[%emt 0:06:25]} (17... Bxf5 18. h4 $17) 18. Ng3 {[%emt 0:05:34]} Rf7 {[%emt 0:00:27]} 19. Qd2 {[%emt 0:00:09]} (19. Be3 $142) 19... Bh3 {[%emt 0:03:49]} 20. Be3 {[%emt 0:05:26]} Rb8 {[%emt 0:02:58]} 21. b3 {[%emt 0:05:48]} Qa5 {[%emt 0:02:51]} 22. Rb1 {[%emt 0:06:34]} Ne6 {[%emt 0:07:23]} 23. b4 {[%emt 0:01:57]} Qd8 {[%emt 0:01:34]} 24. Kd1 {[%emt 0:01:28]} a5 {[%emt 0:10:17]} 25. a3 {[%emt 0:00:23]} axb4 {[%emt 0:00:39]} 26. axb4 {[%emt 0:00:13]} Ra8 {[%emt 0:06:21] Repels Ra1} 27. Kc2 {[%emt 0:00:47]} Ra3 {[%emt 0:00:40]} 28. Rb2 $2 {[%emt 0:01:29]} (28. Ra1 Rfa7 29. Rxa3 Rxa3 30. Kb1) 28... Qa8 {[%emt 0:00:31][%cal Of7f2]} 29. Rhb1 {[%emt 0:00:46]} Nf4 {[%emt 0:03:36]} 30. b5 {[%emt 0:02:47]} cxb5 {[%emt 0:05:19]} 31. Bxb5 {[%emt 0:01:14]} Qc8 {[%emt 0:02:49]} 32. Rb3 {[%emt 0:03:07] aiming for Rxa3.} Ra8 {[%emt 0:00:59][%cal Of4d3]} 33. Kd1 {[%emt 0:02:03]} (33. Ne2 {might work better.} Ng2 34. Ng3) 33... Bg4+ {[%emt 0:02:47]} 34. Be2 {[%emt 0:01:49]} (34. Kc1 $142 h5 35. Kb2) 34... Nd3 {[%emt 0:03:17]} 35. Bxg4 {[%emt 0:04:29]} Qxg4+ {[%emt 0:00:04]} 36. Qe2 {[%emt 0:00:08]} Qh3 {[%emt 0:00:11]} ({Stronger than} 36... Nxf2+ 37. Bxf2 Qd7 38. Be1 $16) 37. c4 {[%emt 0:00:34]} Bxg3 {[%emt 0:01:57]} 38. fxg3 {[%emt 0:05:14]} Rf1+ {[%emt 0:00:44]} 39. Kc2 {[%emt 0:00:05]} Ra2+ {[%emt 0:00:58]} 40. R3b2 {[%emt 0:00:31]} Rxb2+ {[%emt 0:00:14]} 41. Rxb2 {[%emt 0:00:07]} Nxb2 {[%emt 0:00:06]} ({Not} 41... dxc4 42. Rb8+ Kf7 43. Bd2 $17) 42. Kxb2 {[%emt 0:00:05]} Rh1 {[%emt 0:00:22]} 43. Kc3 {[%emt 0:01:57]} Rxh2 {[%emt 0:00:13]} 44. Qe1 {[%emt 0:00:08]} Qc8 {[%emt 0:00:20]} 0-1